[Event "FIDE World Rapid Chess Championship 2021"]
[White "Petrosian, Tigran L."]
[Black "Sargissian, Gabriel"]
[WhiteFideId "13301616"]
[BlackFideId "13300881"]
[WhiteElo "2621"]
[BlackElo "2693"]
[Result "1-0"]
[Round "11"]
[TimeControl "900+10"]
[Date "2021.12.28"]
[WhiteClock "0:00:14"]
[BlackClock "0:00:33"]

1. Nf3 {[%clk 0:15:00]}  d5 {[%clk 0:15:00]} 2. g3 {[%clk 0:15:00]}  Nf6 {[%clk 0:15:00]} 3. Bg2 {[%clk 0:15:00]}  e6 {[%clk 0:15:00]} 4. O-O {[%clk 0:15:00]}  Be7 {[%clk 0:15:00]} 5. d3 {[%clk 0:15:00]}  O-O {[%clk 0:15:00]} 6. Nbd2 {[%clk 0:15:00]}  Nc6 {[%clk 0:15:18]} 7. e4 {[%clk 0:15:57]}  dxe4 {[%clk 0:15:18]} 8. dxe4 {[%clk 0:15:57]}  e5 {[%clk 0:15:18]} 9. c3 {[%clk 0:15:57]}  a5 {[%clk 0:15:18]} 10. Qc2 {[%clk 0:15:57]}  Bc5 {[%clk 0:15:18]} 11. Nc4 {[%clk 0:15:57]}  Qe7 {[%clk 0:15:24]} 12. Ne3 {[%clk 0:13:41]}  Bxe3 {[%clk 0:15:24]} 13. Bxe3 {[%clk 0:13:41]}  Rd8 {[%clk 0:15:13]} 14. h3 {[%clk 0:12:10]}  Be6 {[%clk 0:15:13]} 15. b3 {[%clk 0:11:59]}  Ne8 {[%clk 0:13:41]} 16. Nh4 {[%clk 0:08:09]}  g6 {[%clk 0:10:35]} 17. f4 {[%clk 0:08:09]}  exf4 {[%clk 0:10:35]} 18. Rxf4 {[%clk 0:08:09]}  Ng7 {[%clk 0:10:35]} 19. Rff1 {[%clk 0:04:03]}  Nh5 {[%clk 0:10:44]} 20. Qf2 {[%clk 0:04:03]}  Ne5 {[%clk 0:10:44]} 21. Bd4 {[%clk 0:04:03]}  Qg5 {[%clk 0:10:09]} 22. g4 {[%clk 0:01:59]}  Nd3 {[%clk 0:10:09]} 23. Nf3 {[%clk 0:01:59]}  Qe7 {[%clk 0:10:09]} 24. Qe3 {[%clk 0:01:33]}  Nhf4 {[%clk 0:08:09]} 25. Ne5 {[%clk 0:01:33]}  Nxg2 {[%clk 0:06:58]} 26. Qxd3 {[%clk 0:00:50]}  c5 {[%clk 0:04:30]} 27. Kxg2 {[%clk 0:00:56]}  cxd4 {[%clk 0:04:30]} 28. cxd4 {[%clk 0:00:56]}  h5 {[%clk 0:04:30]} 29. Qe3 {[%clk 0:00:56]}  Rac8 {[%clk 0:02:11]} 30. Rf2 {[%clk 0:00:22]}  Qd6 {[%clk 0:02:11]} 31. Rd1 {[%clk 0:00:22]}  hxg4 {[%clk 0:02:11]} 32. Nxg4 {[%clk 0:00:22]}  Bxg4 {[%clk 0:02:11]} 33. hxg4 {[%clk 0:00:22]}  Kg7 {[%clk 0:02:11]} 34. Rdf1 {[%clk 0:00:14]}  Qxd4 {[%clk 0:00:33]} 35. Rxf7+ {[%clk 0:00:14]}  Kg8 {[%clk 0:00:33]} 36. Rf8+ {[%clk 0:00:14]} 1-0


[Site "http://www.Chess.com"]

[Event "FIDE World Rapid Chess Championship 2021"]
[White "Ivic, Velimir"]
[Black "Korobov, Anton"]
[WhiteFideId "950122"]
[BlackFideId "14105730"]
[WhiteElo "2357"]
[BlackElo "2689"]
[Result "0-1"]
[Round "11"]
[TimeControl "900+10"]
[Date "2021.12.28"]
[WhiteClock "0:01:36"]
[BlackClock "0:07:27"]

1. e4 {[%clk 0:15:00]}  c5 {[%clk 0:15:00]} 2. Nf3 {[%clk 0:15:00]}  d6 {[%clk 0:15:00]} 3. d4 {[%clk 0:15:00]}  cxd4 {[%clk 0:15:00]} 4. Nxd4 {[%clk 0:15:00]}  Nf6 {[%clk 0:15:00]} 5. Nc3 {[%clk 0:15:00]}  a6 {[%clk 0:15:00]} 6. Bg5 {[%clk 0:15:00]}  Nbd7 {[%clk 0:15:00]} 7. Bc4 {[%clk 0:15:00]}  Qb6 {[%clk 0:15:00]} 8. Bb3 {[%clk 0:15:00]}  e6 {[%clk 0:15:00]} 9. Bxf6 {[%clk 0:15:00]}  Nxf6 {[%clk 0:15:00]} 10. Qd2 {[%clk 0:15:57]}  Bd7 {[%clk 0:15:28]} 11. O-O-O {[%clk 0:15:57]}  g6 {[%clk 0:15:28]} 12. Kb1 {[%clk 0:15:57]}  Rc8 {[%clk 0:15:28]} 13. f4 {[%clk 0:15:57]}  Rxc3 {[%clk 0:14:24]} 14. Qxc3 {[%clk 0:15:04]}  Nxe4 {[%clk 0:14:24]} 15. Qe3 {[%clk 0:15:04]}  d5 {[%clk 0:14:24]} 16. c4 {[%clk 0:15:04]}  Bc6 {[%clk 0:13:56]} 17. cxd5 {[%clk 0:13:38]}  exd5 {[%clk 0:13:56]} 18. Qh3 {[%clk 0:13:38]}  Bg7 {[%clk 0:13:36]} 19. Qe3 {[%clk 0:11:30]}  O-O {[%clk 0:04:52]} 20. Rhe1 {[%clk 0:11:30]}  Qa5 {[%clk 0:04:52]} 21. Nf3 {[%clk 0:11:30]}  Re8 {[%clk 0:11:46]} 22. Ne5 {[%clk 0:02:27]}  Bh6 {[%clk 0:09:16]} 23. Qh3 {[%clk 0:02:16]}  Nd2+ {[%clk 0:09:16]} 24. Ka1 {[%clk 0:01:36]}  Bxf4 {[%clk 0:07:27]} 25. Nxc6 {[%clk 0:01:36]}  Nxb3+ {[%clk 0:07:27]} 26. Kb1 {[%clk 0:01:36]}  Nd2+ {[%clk 0:07:27]} 27. Ka1 {[%clk 0:01:36]}  Rxe1 {[%clk 0:07:27]} 28. Qc8+ {[%clk 0:01:36]}  Kg7 {[%clk 0:07:27]} 0-1


[Site "http://www.Chess.com"]

[Event "FIDE World Rapid Chess Championship 2021"]
[White "Onyshchuk, Volodymyr"]
[Black "Ghaem Maghami, Ehsan"]
[WhiteFideId "14114038"]
[BlackFideId "12500739"]
[WhiteElo "2687"]
[BlackElo "2553"]
[Result "1-0"]
[Round "11"]
[TimeControl "900+10"]
[Date "2021.12.28"]
[WhiteClock "0:04:26"]
[BlackClock "0:00:19"]

1. e4 {[%clk 0:15:00]}  c5 {[%clk 0:15:00]} 2. Nf3 {[%clk 0:15:00]}  e6 {[%clk 0:15:00]} 3. b3 {[%clk 0:15:00]}  d6 {[%clk 0:15:00]} 4. Bb2 {[%clk 0:15:00]}  Nf6 {[%clk 0:15:00]} 5. e5 {[%clk 0:15:00]}  dxe5 {[%clk 0:15:00]} 6. Nxe5 {[%clk 0:15:34]}  Nbd7 {[%clk 0:15:00]} 7. Nc4 {[%clk 0:15:34]}  Be7 {[%clk 0:15:00]} 8. Nc3 {[%clk 0:15:34]}  Nb6 {[%clk 0:13:45]} 9. Ne5 {[%clk 0:15:11]}  O-O {[%clk 0:10:55]} 10. f4 {[%clk 0:14:32]}  Nfd5 {[%clk 0:10:55]} 11. Qf3 {[%clk 0:14:32]}  Nxc3 {[%clk 0:09:46]} 12. dxc3 {[%clk 0:13:55]}  f6 {[%clk 0:09:46]} 13. Nc4 {[%clk 0:13:55]}  Qd5 {[%clk 0:09:46]} 14. Qe3 {[%clk 0:13:55]}  Rd8 {[%clk 0:09:46]} 15. Nxb6 {[%clk 0:13:56]}  axb6 {[%clk 0:08:03]} 16. c4 {[%clk 0:13:56]}  Qh5 {[%clk 0:08:03]} 17. Bd3 {[%clk 0:13:56]}  Bd7 {[%clk 0:08:03]} 18. O-O {[%clk 0:12:40]}  f5 {[%clk 0:06:34]} 19. a4 {[%clk 0:12:40]}  Qf7 {[%clk 0:06:34]} 20. Rae1 {[%clk 0:12:40]}  Bf6 {[%clk 0:06:09]} 21. Be5 {[%clk 0:11:01]}  Re8 {[%clk 0:06:09]} 22. h3 {[%clk 0:11:01]}  Bc6 {[%clk 0:06:09]} 23. g4 {[%clk 0:11:01]}  g6 {[%clk 0:06:09]} 24. Qg3 {[%clk 0:10:26]}  Kh8 {[%clk 0:05:04]} 25. Re3 {[%clk 0:10:10]}  Rf8 {[%clk 0:02:24]} 26. g5 {[%clk 0:10:10]}  Bxe5 {[%clk 0:02:24]} 27. Rxe5 {[%clk 0:10:10]}  Rad8 {[%clk 0:02:24]} 28. Qe3 {[%clk 0:10:10]}  Rfe8 {[%clk 0:02:09]} 29. Re1 {[%clk 0:09:17]}  Kg8 {[%clk 0:02:09]} 30. Kf2 {[%clk 0:09:17]}  Rd4 {[%clk 0:02:09]} 31. a5 {[%clk 0:09:17]}  Qc7 {[%clk 0:02:09]} 32. axb6 {[%clk 0:08:43]}  Qxb6 {[%clk 0:00:24]} 33. Rxe6 {[%clk 0:08:43]}  Re4 {[%clk 0:00:24]} 34. Rxe8+ {[%clk 0:08:32]}  Rxe8 {[%clk 0:00:28]} 35. Qd2 {[%clk 0:08:32]}  Qd8 {[%clk 0:00:28]} 36. Rxe8+ {[%clk 0:08:32]}  Qxe8 {[%clk 0:00:28]} 37. h4 {[%clk 0:08:32]}  Kf7 {[%clk 0:00:28]} 38. h5 {[%clk 0:05:00]}  Qe7 {[%clk 0:00:27]} 39. h6 {[%clk 0:05:00]}  Qd6 {[%clk 0:00:27]} 40. Qe3 {[%clk 0:05:00]}  b6 {[%clk 0:00:27]} 41. Kg3 {[%clk 0:05:00]}  Bd7 {[%clk 0:00:27]} 42. Be2 {[%clk 0:05:00]}  Bc6 {[%clk 0:00:27]} 43. Qc3 {[%clk 0:05:00]}  Qe7 {[%clk 0:00:27]} 44. Kf2 {[%clk 0:05:00]}  Ke8 {[%clk 0:00:27]} 45. Bd3 {[%clk 0:05:00]}  Kd7 {[%clk 0:00:19]} 46. Qg7 {[%clk 0:04:26]} 1-0


[Site "http://www.Chess.com"]

[Event "FIDE World Rapid Chess Championship 2021"]
[White "Saric, Ivan"]
[Black "Harsha, Bharathakoti"]
[WhiteFideId "14508150"]
[BlackFideId "5078776"]
[WhiteElo "2684"]
[BlackElo "2484"]
[Result "1-0"]
[Round "11"]
[TimeControl "900+10"]
[Date "2021.12.28"]
[WhiteClock "0:02:44"]
[BlackClock "0:03:37"]

1. e4 {[%clk 0:15:00]}  c5 {[%clk 0:15:00]} 2. Nf3 {[%clk 0:15:00]}  d6 {[%clk 0:15:00]} 3. d4 {[%clk 0:15:00]}  cxd4 {[%clk 0:15:00]} 4. Nxd4 {[%clk 0:15:00]}  Nf6 {[%clk 0:15:00]} 5. Nc3 {[%clk 0:15:00]}  a6 {[%clk 0:15:00]} 6. f3 {[%clk 0:15:00]}  e5 {[%clk 0:15:09]} 7. Nb3 {[%clk 0:15:55]}  Be6 {[%clk 0:15:09]} 8. Be3 {[%clk 0:15:55]}  h5 {[%clk 0:15:09]} 9. Nd5 {[%clk 0:15:55]}  Bxd5 {[%clk 0:15:09]} 10. exd5 {[%clk 0:15:50]}  Nbd7 {[%clk 0:15:09]} 11. Qd2 {[%clk 0:15:50]}  Rc8 {[%clk 0:15:09]} 12. Na5 {[%clk 0:16:02]}  Qc7 {[%clk 0:14:46]} 13. c4 {[%clk 0:16:02]}  g6 {[%clk 0:14:46]} 14. Be2 {[%clk 0:16:02]}  Bg7 {[%clk 0:14:46]} 15. O-O {[%clk 0:16:02]}  O-O {[%clk 0:14:46]} 16. Rac1 {[%clk 0:13:21]}  Rfe8 {[%clk 0:11:23]} 17. b4 {[%clk 0:13:21]}  Bf8 {[%clk 0:11:23]} 18. Kh1 {[%clk 0:13:21]}  Qb8 {[%clk 0:11:23]} 19. g4 {[%clk 0:13:05]}  hxg4 {[%clk 0:09:20]} 20. fxg4 {[%clk 0:13:05]}  Bg7 {[%clk 0:09:20]} 21. g5 {[%clk 0:13:05]}  Nh7 {[%clk 0:09:20]} 22. Bg4 {[%clk 0:13:05]}  Rcd8 {[%clk 0:08:09]} 23. c5 {[%clk 0:12:33]}  dxc5 {[%clk 0:08:09]} 24. bxc5 {[%clk 0:12:33]}  e4 {[%clk 0:08:09]} 25. c6 {[%clk 0:12:33]}  bxc6 {[%clk 0:08:09]} 26. Nxc6 {[%clk 0:12:33]}  Qd6 {[%clk 0:08:09]} 27. Nxd8 {[%clk 0:10:59]}  Rxd8 {[%clk 0:08:32]} 28. Rc6 {[%clk 0:10:59]}  Qa3 {[%clk 0:08:32]} 29. Qc1 {[%clk 0:10:59]}  Qxa2 {[%clk 0:08:32]} 30. Rc8 {[%clk 0:10:59]}  Rxc8 {[%clk 0:08:32]} 31. Qxc8+ {[%clk 0:10:59]}  Nhf8 {[%clk 0:08:06]} 32. Bxd7 {[%clk 0:09:35]}  Qe2 {[%clk 0:08:06]} 33. Rxf7 {[%clk 0:08:53]}  Qxe3 {[%clk 0:08:20]} 34. Be6 {[%clk 0:08:53]}  Kh7 {[%clk 0:08:20]} 35. Rxf8 {[%clk 0:08:53]}  Bxf8 {[%clk 0:07:42]} 36. Qxf8 {[%clk 0:05:42]}  Qc1+ {[%clk 0:07:42]} 37. Kg2 {[%clk 0:05:42]}  Qxg5+ {[%clk 0:07:42]} 38. Kh3 {[%clk 0:04:30]}  Qe3+ {[%clk 0:06:45]} 39. Kh4 {[%clk 0:03:52]}  Qe1+ {[%clk 0:06:45]} 40. Kg5 {[%clk 0:03:52]}  Qe3+ {[%clk 0:06:45]} 41. Qf4 {[%clk 0:02:44]}  Qg1+ {[%clk 0:03:37]} 42. Bg4 {[%clk 0:02:44]} 1-0


[Site "http://www.Chess.com"]

[Event "FIDE World Rapid Chess Championship 2021"]
[White "Gareyev, Timur"]
[Black "Sarana, Alexey"]
[WhiteFideId "14200937"]
[BlackFideId "24133795"]
[WhiteElo "2578"]
[BlackElo "2680"]
[Result "0-1"]
[Round "11"]
[TimeControl "900+10"]
[Date "2021.12.28"]
[WhiteClock "0:00:42"]
[BlackClock "0:00:31"]

1. d4 {[%clk 0:15:00]}  Nf6 {[%clk 0:15:00]} 2. c4 {[%clk 0:15:00]}  e6 {[%clk 0:15:00]} 3. Nc3 {[%clk 0:15:00]}  Bb4 {[%clk 0:15:00]} 4. Qc2 {[%clk 0:15:00]}  d5 {[%clk 0:15:00]} 5. e3 {[%clk 0:15:00]}  O-O {[%clk 0:15:00]} 6. a3 {[%clk 0:15:00]}  Be7 {[%clk 0:15:00]} 7. Nf3 {[%clk 0:15:00]}  Nbd7 {[%clk 0:15:00]} 8. Bd2 {[%clk 0:16:03]}  b6 {[%clk 0:15:55]} 9. cxd5 {[%clk 0:16:03]}  exd5 {[%clk 0:15:55]} 10. Bd3 {[%clk 0:16:03]}  c5 {[%clk 0:15:55]} 11. O-O {[%clk 0:13:16]}  Bb7 {[%clk 0:15:34]} 12. Rad1 {[%clk 0:13:16]}  Bd6 {[%clk 0:15:34]} 13. dxc5 {[%clk 0:13:18]}  bxc5 {[%clk 0:13:57]} 14. Ne2 {[%clk 0:13:18]}  Qc7 {[%clk 0:13:57]} 15. Ng3 {[%clk 0:13:18]}  g6 {[%clk 0:13:57]} 16. Bc3 {[%clk 0:08:04]}  Rfe8 {[%clk 0:13:30]} 17. Bb5 {[%clk 0:08:04]}  Re6 {[%clk 0:13:30]} 18. Ng5 {[%clk 0:08:03]}  Re7 {[%clk 0:11:27]} 19. Qa4 {[%clk 0:07:03]}  c4 {[%clk 0:11:30]} 20. Bxd7 {[%clk 0:04:14]}  Nxd7 {[%clk 0:11:30]} 21. Rd4 {[%clk 0:04:14]}  Be5 {[%clk 0:11:30]} 22. Rh4 {[%clk 0:04:14]}  Bxc3 {[%clk 0:11:30]} 23. bxc3 {[%clk 0:04:14]}  Qe5 {[%clk 0:11:30]} 24. Nxh7 {[%clk 0:03:58]}  Kg7 {[%clk 0:08:10]} 25. Qb4 {[%clk 0:03:58]}  Bc6 {[%clk 0:08:10]} 26. f4 {[%clk 0:03:58]}  Qxe3+ {[%clk 0:08:10]} 27. Kh1 {[%clk 0:03:58]}  Rh8 {[%clk 0:07:59]} 28. Rh3 {[%clk 0:03:25]}  Rxh7 {[%clk 0:06:48]} 29. Nf5+ {[%clk 0:01:58]}  gxf5 {[%clk 0:06:48]} 30. Rxe3 {[%clk 0:01:58]}  Rxe3 {[%clk 0:06:48]} 31. Qb1 {[%clk 0:01:58]}  Nf6 {[%clk 0:06:48]} 32. Qxf5 {[%clk 0:01:58]}  Rh5 {[%clk 0:06:48]} 33. Qc8 {[%clk 0:01:58]}  Bd7 {[%clk 0:06:48]} 34. Qc5 {[%clk 0:01:58]}  Re2 {[%clk 0:06:48]} 35. Qd4 {[%clk 0:01:58]}  Bf5 {[%clk 0:06:48]} 36. Kg1 {[%clk 0:01:58]}  a6 {[%clk 0:04:55]} 37. h3 {[%clk 0:02:30]}  Rh6 {[%clk 0:04:55]} 38. Rf2 {[%clk 0:02:30]}  Re1+ {[%clk 0:04:55]} 39. Rf1 {[%clk 0:02:30]}  Re4 {[%clk 0:04:55]} 40. Qd2 {[%clk 0:02:30]}  d4 {[%clk 0:03:51]} 41. cxd4 {[%clk 0:01:56]}  Nd5 {[%clk 0:03:51]} 42. g4 {[%clk 0:01:56]}  c3 {[%clk 0:04:00]} 43. Qa2 {[%clk 0:01:56]}  Be6 {[%clk 0:01:54]} 44. f5 {[%clk 0:02:04]}  Nf4 {[%clk 0:01:54]} 45. fxe6 {[%clk 0:02:04]}  Nxh3+ {[%clk 0:01:54]} 46. Kg2 {[%clk 0:02:04]}  Rxg4+ {[%clk 0:01:54]} 47. Kf3 {[%clk 0:02:04]}  f5 {[%clk 0:01:54]} 48. Ke3 {[%clk 0:02:04]}  Ng5 {[%clk 0:01:54]} 49. Kd3 {[%clk 0:02:04]}  Rh3+ {[%clk 0:01:54]} 50. Kc4 {[%clk 0:02:04]}  Nxe6 {[%clk 0:01:54]} 51. Kd5 {[%clk 0:02:04]}  Kf6 {[%clk 0:01:54]} 52. Re1 {[%clk 0:01:17]}  Nxd4 {[%clk 0:02:06]} 53. Qc4 {[%clk 0:01:17]}  Kg5 {[%clk 0:02:06]} 54. Qc7 {[%clk 0:00:42]}  Rd3 {[%clk 0:00:31]} 55. Qe7+ {[%clk 0:00:42]}  Kf4 {[%clk 0:00:31]} 56. Qe5+ {[%clk 0:00:42]}  Kf3 {[%clk 0:00:31]} 57. Kc5 {[%clk 0:00:42]}  c2 {[%clk 0:00:31]} 58. Kb6 {[%clk 0:00:42]}  Rb3+ {[%clk 0:00:31]} 59. Kxa6 {[%clk 0:00:42]}  Rg6+ {[%clk 0:00:31]} 0-1


[Site "http://www.Chess.com"]

[Event "FIDE World Rapid Chess Championship 2021"]
[White "Sargsyan, Shant"]
[Black "Svane, Rasmus"]
[WhiteFideId "13306766"]
[BlackFideId "4657101"]
[WhiteElo "2344"]
[BlackElo "2677"]
[Result "1/2-1/2"]
[Round "11"]
[TimeControl "900+10"]
[Date "2021.12.28"]
[WhiteClock "0:13:49"]
[BlackClock "0:17:21"]

1. d4 {[%clk 0:15:00]}  Nf6 {[%clk 0:15:00]} 2. c4 {[%clk 0:15:00]}  e6 {[%clk 0:15:00]} 3. Nf3 {[%clk 0:15:00]}  d5 {[%clk 0:15:00]} 4. Nc3 {[%clk 0:15:00]}  c5 {[%clk 0:15:00]} 5. cxd5 {[%clk 0:15:00]}  cxd4 {[%clk 0:15:00]} 6. Qxd4 {[%clk 0:15:00]}  exd5 {[%clk 0:15:00]} 7. e4 {[%clk 0:15:00]}  dxe4 {[%clk 0:15:00]} 8. Qxd8+ {[%clk 0:15:00]}  Kxd8 {[%clk 0:16:38]} 9. Ng5 {[%clk 0:15:55]}  Be6 {[%clk 0:16:38]} 10. Nxe6+ {[%clk 0:15:55]}  fxe6 {[%clk 0:16:38]} 11. Bg5 {[%clk 0:15:55]}  Nc6 {[%clk 0:16:38]} 12. O-O-O {[%clk 0:15:55]}  Ke8 {[%clk 0:16:38]} 13. Bb5 {[%clk 0:15:55]}  Rc8 {[%clk 0:16:38]} 14. Kb1 {[%clk 0:15:55]}  Bb4 {[%clk 0:16:38]} 15. Bxf6 {[%clk 0:15:55]}  gxf6 {[%clk 0:16:38]} 16. Nxe4 {[%clk 0:15:55]}  f5 {[%clk 0:16:38]} 17. Ng5 {[%clk 0:13:49]}  Ke7 {[%clk 0:17:21]} 18. a3 {[%clk 0:13:49]}  Ba5 {[%clk 0:17:21]} 19. Nf3 {[%clk 0:13:49]} 1/2-1/2


[Site "http://www.Chess.com"]

[Event "FIDE World Rapid Chess Championship 2021"]
[White "Demchenko, Anton"]
[Black "Maghsoodloo, Parham"]
[WhiteFideId "4160258"]
[BlackFideId "12539929"]
[WhiteElo "2666"]
[BlackElo "2512"]
[Result "0-1"]
[Round "11"]
[TimeControl "900+10"]
[Date "2021.12.28"]
[WhiteClock "0:00:11"]
[BlackClock "0:00:36"]

1. e4 {[%clk 0:15:00]}  c5 {[%clk 0:15:00]} 2. Nf3 {[%clk 0:15:00]}  Nc6 {[%clk 0:15:00]} 3. Bb5 {[%clk 0:15:00]}  g6 {[%clk 0:15:00]} 4. O-O {[%clk 0:15:00]}  Bg7 {[%clk 0:15:00]} 5. d3 {[%clk 0:15:00]}  e5 {[%clk 0:14:34]} 6. a3 {[%clk 0:16:06]}  Nge7 {[%clk 0:14:34]} 7. b4 {[%clk 0:16:06]}  cxb4 {[%clk 0:14:34]} 8. axb4 {[%clk 0:16:06]}  O-O {[%clk 0:14:34]} 9. c4 {[%clk 0:16:14]}  Nxb4 {[%clk 0:13:46]} 10. Ba3 {[%clk 0:16:14]}  Nbc6 {[%clk 0:13:46]} 11. Bd6 {[%clk 0:16:14]}  b6 {[%clk 0:14:02]} 12. Nc3 {[%clk 0:13:11]}  Re8 {[%clk 0:14:02]} 13. c5 {[%clk 0:12:56]}  Bb7 {[%clk 0:12:51]} 14. Bc4 {[%clk 0:12:56]}  Nc8 {[%clk 0:12:51]} 15. Nb5 {[%clk 0:12:56]}  Na5 {[%clk 0:11:19]} 16. Rxa5 {[%clk 0:10:16]}  bxa5 {[%clk 0:04:58]} 17. Qb3 {[%clk 0:10:16]}  Qf6 {[%clk 0:04:58]} 18. d4 {[%clk 0:05:15]}  a4 {[%clk 0:05:16]} 19. Qa2 {[%clk 0:03:42]}  exd4 {[%clk 0:05:16]} 20. e5 {[%clk 0:03:42]}  Qf4 {[%clk 0:05:16]} 21. e6 {[%clk 0:03:42]}  Nxd6 {[%clk 0:05:16]} 22. Nxd6 {[%clk 0:03:42]}  dxe6 {[%clk 0:02:58]} 23. Nxb7 {[%clk 0:02:44]}  Qc7 {[%clk 0:02:58]} 24. Nd6 {[%clk 0:02:44]}  Re7 {[%clk 0:00:49]} 25. Ne4 {[%clk 0:02:45]}  Qc6 {[%clk 0:00:49]} 26. Re1 {[%clk 0:02:45]}  Rb8 {[%clk 0:00:49]} 27. h4 {[%clk 0:02:45]}  h6 {[%clk 0:00:49]} 28. Qd2 {[%clk 0:02:45]}  a3 {[%clk 0:00:49]} 29. Qa5 {[%clk 0:00:59]}  Reb7 {[%clk 0:01:15]} 30. Ba2 {[%clk 0:00:59]}  Rb4 {[%clk 0:01:15]} 31. Qxa7 {[%clk 0:00:59]}  Qb7 {[%clk 0:01:15]} 32. Qa5 {[%clk 0:00:59]}  Ra8 {[%clk 0:01:15]} 33. c6 {[%clk 0:00:11]}  Rxa5 {[%clk 0:00:36]} 34. cxb7 {[%clk 0:00:11]}  Rxb7 {[%clk 0:00:36]} 35. Nfd2 {[%clk 0:00:11]}  Rb2 {[%clk 0:00:36]} 36. Nc4 {[%clk 0:00:11]}  Rxa2 {[%clk 0:00:36]} 37. Nxa5 {[%clk 0:00:11]}  d3 {[%clk 0:00:36]} 38. Rd1 {[%clk 0:00:11]}  Re2 {[%clk 0:00:36]} 39. Nc5 {[%clk 0:00:11]}  d2 {[%clk 0:00:36]} 40. Nd3 {[%clk 0:00:11]}  Bc3 {[%clk 0:00:36]} 41. Nc4 {[%clk 0:00:11]}  a2 {[%clk 0:00:36]} 42. Kh2 {[%clk 0:00:11]}  a1=Q {[%clk 0:00:36]} 43. Rxa1 {[%clk 0:00:11]}  Bxa1 {[%clk 0:00:36]} 0-1


[Site "http://www.Chess.com"]

[Event "FIDE World Rapid Chess Championship 2021"]
[White "Sanal, Vahap"]
[Black "Matlakov, Maxim"]
[WhiteFideId "6300545"]
[BlackFideId "4168003"]
[WhiteElo "2509"]
[BlackElo "2652"]
[Result "0-1"]
[Round "11"]
[TimeControl "900+10"]
[Date "2021.12.28"]
[WhiteClock "0:00:56"]
[BlackClock "0:00:56"]

1. Nf3 {[%clk 0:15:00]}  d5 {[%clk 0:15:00]} 2. b3 {[%clk 0:15:00]}  Nf6 {[%clk 0:15:00]} 3. Bb2 {[%clk 0:15:00]}  e6 {[%clk 0:15:00]} 4. g3 {[%clk 0:15:00]}  c5 {[%clk 0:15:00]} 5. Bg2 {[%clk 0:15:00]}  Nc6 {[%clk 0:15:00]} 6. O-O {[%clk 0:15:00]}  Be7 {[%clk 0:15:00]} 7. e3 {[%clk 0:15:00]}  O-O {[%clk 0:15:00]} 8. c4 {[%clk 0:15:52]}  b6 {[%clk 0:15:11]} 9. Qe2 {[%clk 0:15:52]}  Bb7 {[%clk 0:15:11]} 10. d3 {[%clk 0:15:52]}  Rc8 {[%clk 0:15:11]} 11. Nc3 {[%clk 0:15:52]}  Qc7 {[%clk 0:15:11]} 12. cxd5 {[%clk 0:15:52]}  Nxd5 {[%clk 0:15:11]} 13. Nxd5 {[%clk 0:15:59]}  exd5 {[%clk 0:13:42]} 14. Rfd1 {[%clk 0:15:59]}  b5 {[%clk 0:13:42]} 15. Nh4 {[%clk 0:15:59]}  Bxh4 {[%clk 0:12:23]} 16. Qg4 {[%clk 0:14:57]}  d4 {[%clk 0:10:12]} 17. Qxh4 {[%clk 0:14:57]}  Ne5 {[%clk 0:10:12]} 18. e4 {[%clk 0:14:57]}  f5 {[%clk 0:10:12]} 19. Rac1 {[%clk 0:14:16]}  Qd6 {[%clk 0:08:32]} 20. b4 {[%clk 0:13:35]}  c4 {[%clk 0:06:43]} 21. dxc4 {[%clk 0:10:19]}  Rxc4 {[%clk 0:06:43]} 22. Qg5 {[%clk 0:10:01]}  Bxe4 {[%clk 0:05:43]} 23. Rxc4 {[%clk 0:07:25]}  bxc4 {[%clk 0:02:16]} 24. Rxd4 {[%clk 0:07:25]}  Qxb4 {[%clk 0:02:16]} 25. Bxe4 {[%clk 0:05:50]}  Qxb2 {[%clk 0:02:33]} 26. Bd5+ {[%clk 0:05:50]}  Kh8 {[%clk 0:02:33]} 27. Rh4 {[%clk 0:05:50]}  Qb6 {[%clk 0:02:33]} 28. Qe7 {[%clk 0:03:10]}  Ng6 {[%clk 0:01:14]} 29. Qa3 {[%clk 0:03:10]}  Qb1+ {[%clk 0:00:56]} 30. Kg2 {[%clk 0:00:56]}  Nxh4+ {[%clk 0:00:56]} 31. gxh4 {[%clk 0:00:56]}  Rd8 {[%clk 0:00:56]} 32. Qxa7 {[%clk 0:00:56]}  Qd3 {[%clk 0:00:56]} 33. Bf7 {[%clk 0:00:56]}  Qe4+ {[%clk 0:00:56]} 34. f3 {[%clk 0:00:56]}  Rd2+ {[%clk 0:00:56]} 35. Kg3 {[%clk 0:00:56]}  Qe5+ {[%clk 0:00:56]} 0-1


[Site "http://www.Chess.com"]